fUST/lending_fUST_20240723
["ID","MTS","AMOUNT","RATE_DAILY","PERIOD"]
[332908740,1721675441170,-500.0,0.00013698,2]
[332908741,1721675441181,-500.0,0.00013698,2]
[332908742,1721675441191,-500.0,0.00013698,2]
[332908743,1721675441200,-500.0,0.00013698,2]
[332908744,1721675441210,-500.0,0.00013698,2]
[332908745,1721675441222,-500.0,0.00013698,2]
[332908746,1721675441232,-500.0,0.00013698,2]
[332908747,1721675441241,-512.58491509,0.00013698,2]
[332908748,1721675441250,-500.0,0.00013698,2]
[332908749,1721675441259,-500.0,0.00013698,2]
[332908750,1721675441269,-513.10565774,0.00013698,2]
[332908751,1721675441278,-500.0,0.00013698,2]
[332908752,1721675441288,-500.0,0.00013698,2]
[332908753,1721675441297,-500.0,0.00013698,2]
[332908754,1721675441308,-500.0,0.00013698,2]
[332908755,1721675441317,-500.0,0.00013698,2]
[332908756,1721675441327,-500.0,0.00013698,2]
[332908757,1721675441338,-500.0,0.00013698,2]
[332908758,1721675441348,-500.0,0.00013698,2]
[332908759,1721675441357,-500.0,0.00013698,2]
[332908760,1721675441367,-500.0,0.00013698,2]
[332908761,1721675441377,-500.0,0.00013698,2]
[332908762,1721675441388,-500.0,0.00013698,2]
[332908763,1721675441398,-500.0,0.00013698,2]
[332908764,1721675441410,-1206.92964557,0.00013698,2]
[332908765,1721675441421,-1206.92964557,0.00013698,2]
[332908766,1721675441430,-1206.92964557,0.00013698,2]
[332908767,1721675441439,-505.82577236,0.00013698,2]
[332908768,1721675441449,-500.0,0.00013698,2]
[332908769,1721675441460,-500.0,0.00013698,2]
[332908770,1721675441470,-500.0,0.00013698,2]
[332908771,1721675441479,-500.0,0.00013698,2]
[332908772,1721675441490,-500.0,0.00013698,2]
[332908773,1721675441501,-500.0,0.00013698,2]
[332908774,1721675441511,-503.81,0.00013698,2]
[332908775,1721675441522,-500.0,0.00013698,2]
[332908776,1721675441531,-500.0,0.00013698,2]
[332908777,1721675441541,-216.29382575,0.00013698,2]
[332908778,1721675441553,-500.0,0.00013698,2]
[332908779,1721675441562,-500.0,0.00013698,2]
[332908780,1721675441574,-500.0,0.00013698,2]
[332908781,1721675441583,-556.62,0.00013698,2]
[332908782,1721675441593,-503.98098169,0.00013698,2]
[332908783,1721675441602,-500.0,0.00013698,2]
[332908784,1721675441612,-1762.86,0.00013698,2]
[332908785,1721675441622,-500.0,0.00013698,2]
[332908786,1721675441632,-500.0,0.00013698,2]
[332908787,1721675441643,-500.0,0.00013698,2]
[332908788,1721675441652,-3147.26,0.00013698,2]
[332908789,1721675441663,-500.0,0.00013698,2]
[332908790,1721675441672,-1401.37,0.00013698,2]
[332908791,1721675441681,-500.0,0.00013698,2]
[332908792,1721675441690,-500.0,0.00013698,2]
[332908793,1721675441700,-513.80969609,0.00013698,2]
[332908794,1721675441709,-500.0,0.00013698,2]
[332908795,1721675441719,-500.0,0.00013698,2]
[332908796,1721675441728,-196.130552,0.00013699,2]
[332908797,1721675441742,-3000.0,0.00013699,2]
[332908798,1721675441753,-5762.6734463,0.00013699,2]
[332908799,1721675441765,-1355.04748087,0.00013772,2]
[332908800,1721675441776,-1409.0,0.00013842,2]
[332908801,1721675441787,-1000.0,0.00013872,2]
[332908802,1721675441800,-151.0,0.00013949,2]
[332908803,1721675441810,-151.0,0.00013949,2]
[332908804,1721675441820,-500.0,0.0001397,2]
[332908805,1721675441834,-500.0,0.00013971,2]
[332908806,1721675441843,-339.24,0.00013971,2]
[332908807,1721675441853,-3082.32,0.00013971,2]
[332908808,1721675441863,-500.0,0.00013971,2]
[332908809,1721675441873,-105505.26754252,0.00013972,5]
[332908810,1721675441884,-500.0,0.00013972,2]
[332908811,1721675441895,-500.0,0.00013972,2]
[332908812,1721675441906,-500.0,0.00013972,2]
[332908813,1721675441916,-428.08411893,0.00013972,2]
[332908814,1721675441926,-500.0,0.00013972,2]
[332908815,1721675441936,-500.0,0.00013972,2]
[332908816,1721675441945,-500.0,0.00013972,2]
[332908817,1721675441955,-500.0,0.00013972,2]
[332908818,1721675441964,-500.0,0.00013972,2]
[332908819,1721675441973,-1929.02,0.00013972,2]
[332908820,1721675441983,-500.0,0.00013972,2]
[332908821,1721675441992,-151.0,0.00013972,2]
[332908822,1721675442002,-232.94306869,0.00013972,2]
[332908823,1721675442011,-151.0,0.00013972,2]
[332908824,1721675442021,-611.19489112,0.00013972,2]
[332908825,1721675442030,-398.11,0.00013972,2]
[332908826,1721675442040,-500.0,0.00013972,2]
[332908827,1721675442049,-500.0,0.00013972,2]
[332908828,1721675442058,-500.0,0.00013972,2]
[332908829,1721675442067,-500.0,0.00013972,2]
[332908830,1721675442077,-923.66,0.00013972,2]
[332908831,1721675442086,-218.79,0.00013972,2]
[332908832,1721675442096,-500.0,0.00013972,2]
[332908833,1721675442105,-500.0,0.00013972,2]
[332908834,1721675442114,-500.0,0.00013972,2]
[332908835,1721675442123,-500.0,0.00013972,2]
[332908836,1721675442133,-500.0,0.00013972,2]
[332908837,1721675442147,-1833.33,0.00013972,2]
[332908838,1721675442156,-1513.61,0.00013972,2]
[332908839,1721675442166,-585.7,0.00013972,2]
[332908840,1721675442175,-650.38,0.00013972,2]
[332908841,1721675442186,-500.0,0.00013972,2]
[332908842,1721675442195,-500.0,0.00013972,2]
[332908843,1721675442205,-500.0,0.00013972,2]
[332908844,1721675442216,-556.74,0.00013972,2]
[332908845,1721675442228,-289.3,0.00013972,2]
[332908846,1721675442242,-500.0,0.00013972,2]
[332908847,1721675442257,-500.0,0.00013972,2]
[332908848,1721675442267,-500.0,0.00013972,2]
[332908849,1721675442277,-512.30158509,0.00013972,2]
[332908850,1721675442286,-500.0,0.00013972,2]
[332908851,1721675442296,-500.0,0.00013972,2]
[332908852,1721675442306,-500.0,0.00013972,2]
[332908853,1721675442315,-500.0,0.00013972,2]
[332908854,1721675442325,-500.0,0.00013972,2]
[332908855,1721675442335,-500.0,0.00013972,2]
[332908856,1721675442346,-500.0,0.00013972,2]
[332908857,1721675442355,-500.0,0.00013972,2]
[332908858,1721675442365,-500.0,0.00013972,2]
[332908859,1721675442374,-500.0,0.00013972,2]
[332908860,1721675442384,-500.0,0.00013972,2]
[332908861,1721675442394,-500.0,0.00013972,2]
[332908862,1721675442403,-500.0,0.00013972,2]
[332908863,1721675442413,-500.0,0.00013972,2]
[332908864,1721675442422,-500.0,0.00013972,2]
[332908865,1721675442432,-500.0,0.00013972,2]
[332908866,1721675442441,-500.0,0.00013972,2]
[332908867,1721675442451,-500.0,0.00013972,2]
[332908868,1721675442461,-500.0,0.00013972,2]
[332908869,1721675442470,-449.08211785,0.00013972,2]
[332908870,1721675442479,-500.0,0.00013972,2]
[332908871,1721675442495,-500.0,0.00013972,2]
[332908872,1721675442505,-176.08,0.00013972,2]
[332908873,1721675442514,-500.0,0.00013972,2]
[332908874,1721675442524,-545.3,0.00013972,2]
[332908875,1721675442534,-500.0,0.00013972,2]
[332908876,1721675442543,-500.0,0.00013972,2]
[332908877,1721675442553,-262.90599564,0.00013972,2]
[332908878,1721675442562,-371.00016222,0.00013972,2]
[332908879,1721675442572,-500.0,0.00013972,2]
[332908880,1721675442582,-410.81164326,0.00013972,2]
[332908881,1721675442592,-500.0,0.00013972,2]
[332908882,1721675442601,-598.50153424,0.00013972,2]
[332908883,1721675442611,-500.0,0.00013972,2]
[332908884,1721675442621,-500.0,0.00013972,2]
[332908885,1721675442630,-500.0,0.00013972,2]
[332908886,1721675442640,-500.0,0.00013972,2]
[332908887,1721675442650,-500.0,0.00013972,2]
[332908888,1721675442659,-298.56,0.00013972,2]
[332908889,1721675442668,-508.14216732,0.00013972,2]
[332908890,1721675442678,-500.0,0.00013972,2]
[332908891,1721675442688,-229.93,0.00013972,2]
[332908892,1721675442698,-500.0,0.00013972,2]
[332908893,1721675442707,-266.51022137,0.00013972,2]
[332908894,1721675442717,-500.0,0.00013972,2]
[332908895,1721675442727,-500.0,0.00013972,2]
[332908896,1721675442739,-500.0,0.00013972,2]
[332908897,1721675442750,-376.04,0.00013972,2]
[332908899,1721675442760,-447.43,0.00013972,2]
[332908900,1721675442771,-500.0,0.00013972,2]
[332908901,1721675442783,-504.31067322,0.00013972,2]
[332908902,1721675442792,-297.60765715,0.00013972,2]
[332908903,1721675442802,-500.0,0.00013972,2]
[332908904,1721675442812,-500.0,0.00013972,2]
[332908905,1721675442822,-297.12863458,0.00013972,2]
[332908906,1721675442831,-443.13917669,0.00013972,2]
[332908908,1721675442841,-160.69,0.00013972,2]
[332908909,1721675442851,-500.0,0.00013972,2]
[332908910,1721675442976,-500.0,0.00013972,2]
[332908911,1721675442988,-368.02272129,0.00013972,2]
[332908912,1721675442999,-500.000001,0.00013972,2]
[332908914,1721675443009,-505.74011897,0.00013972,2]
[332908915,1721675443018,-500.0,0.00013972,2]
[332908916,1721675443027,-317.06961583,0.00013972,2]
[332908917,1721675443037,-500.0,0.00013972,2]
[332908918,1721675443046,-500.0,0.00013972,2]
[332908919,1721675443056,-500.0,0.00013972,2]
[332908921,1721675443066,-500.0,0.00013972,2]
[332908923,1721675443075,-500.0,0.00013972,2]
[332908925,1721675443085,-318.18026422,0.00013972,2]
[332908928,1721675443095,-500.0,0.00013972,2]
[332908930,1721675443104,-521.74,0.00013972,2]
[332908932,1721675443113,-500.0,0.00013972,2]
[332908934,1721675443123,-500.0,0.00013972,2]
[332908935,1721675443136,-500.0,0.00013972,2]
[332908936,1721675443146,-500.0,0.00013972,2]
[332908937,1721675443157,-500.0,0.00013972,2]
[332908938,1721675443167,-500.0,0.00013972,2]
[332908939,1721675443177,-500.0,0.00013972,2]
[332908940,1721675443187,-415.88450371,0.00013972,2]
[332908941,1721675443197,-500.0,0.00013972,2]
[332908942,1721675443207,-634.91050721,0.00013972,2]
[332908943,1721675443218,-522.44,0.00013972,2]
[332908944,1721675443229,-500.0,0.00013972,2]
[332908945,1721675443239,-500.0,0.00013972,2]
[332908946,1721675443249,-500.0,0.00013972,2]
[332908947,1721675443259,-500.0,0.00013972,2]
[332908948,1721675443269,-504.82102083,0.00013972,2]
[332908949,1721675443278,-552.84,0.00013972,2]
[332908951,1721675443290,-343.9285831,0.00013972,2]
[332908953,1721675443300,-500.0,0.00013972,2]
[332908954,1721675443310,-500.0,0.00013972,2]
[332908955,1721675443320,-391.57,0.00013972,2]
[332908957,1721675443329,-500.0,0.00013972,2]
[332908958,1721675443339,-500.0,0.00013972,2]
[332908960,1721675443349,-528.96,0.00013972,2]
[332908961,1721675443358,-500.0,0.00013972,2]
[332908962,1721675443368,-500.0,0.00013972,2]
[332908963,1721675443378,-500.0,0.00013972,2]
[332908965,1721675443388,-500.0,0.00013972,2]
[332908966,1721675443399,-500.0,0.00013972,2]
[332908968,1721675443410,-500.0,0.00013972,2]
[332908970,1721675443420,-595.93,0.00013972,2]
[332908971,1721675443430,-500.0,0.00013972,2]
[332908972,1721675443439,-500.0,0.00013972,2]
[332908973,1721675443449,-500.0,0.00013972,2]
[332908974,1721675443460,-503.66669502,0.00013972,2]
[332908975,1721675443469,-500.0,0.00013972,2]
[332908976,1721675443479,-500.0,0.00013972,2]
[332908977,1721675443490,-500.0,0.00013972,2]
[332908978,1721675443500,-500.0,0.00013972,2]
[332908979,1721675443509,-502.40109538,0.00013972,2]
[332908980,1721675443520,-459.82,0.00013972,2]
[332908981,1721675443530,-612.57565108,0.00013972,2]
[332908982,1721675443539,-500.0,0.00013972,2]
[332908983,1721675443550,-503.79765142,0.00013972,2]
[332908984,1721675443560,-167.33261989,0.00013972,2]
[332908985,1721675443571,-500.0,0.00013972,2]
[332908986,1721675443581,-259.59583348,0.00013972,2]
[332908987,1721675443590,-500.0,0.00013972,2]
[332908988,1721675443601,-500.0,0.00013972,2]
[332908989,1721675443611,-482.15548226,0.00013972,2]
[332908990,1721675443621,-500.0,0.00013972,2]
[332908991,1721675443631,-500.0,0.00013972,2]
[332908992,1721675443641,-500.0,0.00013972,2]
[332908993,1721675443652,-500.0,0.00013972,2]
[332908994,1721675443663,-503.96679384,0.00013972,2]
[332908995,1721675443673,-151.142,0.00013978,2]
[332908996,1721675443683,-150.0,0.00013978,2]
[332908997,1721675443694,-505.0,0.00013978,2]
[332908998,1721675443704,-1355.04748086,0.00014,2]
[332908999,1721675443714,-1000.0,0.00014005,2]
[332909000,1721675443724,-620.00020918,0.00014045,2]
[332909001,1721675443734,-1000.0,0.00014074,2]
[332909002,1721675443745,-3082.32,0.000142,2]
[332909003,1721675443755,-169.62,0.000142,2]
[332909004,1721675443765,-151.0,0.00014211,2]
[332909005,1721675443775,-151.0,0.00014211,2]
[332909006,1721675443785,-1355.04748086,0.00014228,2]
[332909007,1721675443795,-500.0,0.00014246,2]
[332909008,1721675443805,-500.0,0.00014246,2]
[332909009,1721675443816,-500.0,0.00014246,2]
[332909010,1721675443826,-366.2508088,0.00014246,2]
[332909011,1721675443836,-500.0,0.00014246,2]
[332909012,1721675443846,-500.0,0.00014246,2]
[332909013,1721675443856,-500.0,0.00014246,2]
[332909014,1721675443865,-1929.02,0.00014246,2]
[332909015,1721675443875,-500.0,0.00014246,2]
[332909016,1721675443885,-247.59,0.00014246,2]
[332909017,1721675443894,-923.66,0.00014246,2]
[332909018,1721675443904,-500.0,0.00014246,2]
[332909019,1721675443915,-500.0,0.00014246,2]
[332909020,1721675443927,-529.29,0.00014246,2]
[332909021,1721675443937,-500.0,0.00014246,2]
[332909022,1721675443949,-500.0,0.00014246,2]
[332909023,1721675443960,-1833.33,0.00014246,2]
[332909024,1721675443970,-1513.61,0.00014246,2]
[332909025,1721675443979,-650.38,0.00014246,2]
[332909026,1721675443990,-500.0,0.00014246,2]
[332909027,1721675444001,-500.0,0.00014246,2]
[332909028,1721675444012,-500.0,0.00014246,2]
[332909029,1721675444024,-165.16,0.00014246,2]
[332909030,1721675444034,-500.0,0.00014246,2]
[332909031,1721675444044,-500.0,0.00014246,2]
[332909032,1721675444055,-500.0,0.00014246,2]
[332909033,1721675444066,-500.0,0.00014246,2]
[332909034,1721675444076,-300.39,0.00014246,2]
[332909035,1721675444086,-500.0,0.00014246,2]
[332909036,1721675444096,-181.17,0.00014246,2]
[332909037,1721675444107,-500.0,0.00014246,2]
[332909038,1721675444116,-500.0,0.00014246,2]
[332909039,1721675444126,-500.0,0.00014246,2]
[332909040,1721675444140,-500.0,0.00014246,2]
[332909041,1721675444150,-500.0,0.00014246,2]
[332909042,1721675444160,-500.0,0.00014246,2]
[332909043,1721675444170,-500.0,0.00014246,2]
[332909044,1721675444182,-500.0,0.00014246,2]
[332909045,1721675444191,-500.0,0.00014246,2]
[332909046,1721675444201,-296.66737118,0.00014246,2]
[332909047,1721675444211,-500.0,0.00014246,2]
[332909048,1721675444223,-552.42,0.00014246,2]
[332909049,1721675444232,-586.96858094,0.00014246,2]
[332909050,1721675444244,-500.0,0.00014246,2]
[332909051,1721675444253,-500.0,0.00014246,2]
[332909052,1721675444263,-500.0,0.00014246,2]
[332909053,1721675444273,-511.87,0.00014246,2]
[332909054,1721675444282,-500.0,0.00014246,2]
[332909055,1721675444292,-518.63,0.00014246,2]
[332909056,1721675444302,-500.0,0.00014246,2]
[332909057,1721675444312,-500.0,0.00014246,2]
[332909058,1721675444321,-500.0,0.00014246,2]
[332909059,1721675444331,-153.41,0.00014246,2]
[332909060,1721675444340,-750.0,0.00014247,2]
[332909061,1721675444350,-5304.84073988,0.00014321,2]
[332909062,1721675444359,-367.39222983,0.00014322,2]
[332909063,1721675444369,-587.0,0.00014398,2]
[332909064,1721675444379,-600.0,0.00014453,2]
[332909065,1721675444388,-1355.04748086,0.00014455,2]
[332909066,1721675444398,-151.0,0.0001451,2]
[332909067,1721675444407,-224.50165,0.0001451,2]
[332909068,1721675444417,-224.50165,0.0001451,2]
[332909069,1721675444426,-151.0,0.0001451,2]
[332909070,1721675444435,-233.885454,0.0001451,2]
[332909071,1721675444444,-233.885454,0.0001451,2]
[332909072,1721675444454,-3082.32,0.00014519,2]
[332909073,1721675444463,-151.0,0.00014519,2]
[332909074,1721675444473,-151.0,0.00014519,2]
[332909075,1721675444482,-151.0,0.00014519,2]
[332909076,1721675444493,-153.97056212,0.0001452,2]
[332909077,1721675444503,-500.0,0.0001452,2]
[332909078,1721675444512,-500.0,0.0001452,2]
[332909079,1721675444522,-1886.51,0.0001452,2]
[332909080,1721675444531,-500.0,0.0001452,2]
[332909081,1721675444541,-500.0,0.0001452,2]
[332909082,1721675444550,-500.0,0.0001452,2]
[332909083,1721675444559,-500.0,0.0001452,2]
[332909084,1721675444569,-500.0,0.0001452,2]
[332909085,1721675444578,-500.0,0.0001452,2]
[332909086,1721675444588,-923.66,0.0001452,2]
[332909087,1721675444598,-500.0,0.0001452,2]
[332909088,1721675444608,-500.0,0.0001452,2]
[332909089,1721675444618,-500.0,0.0001452,2]
[332909090,1721675444627,-195.87769448,0.0001452,2]
[332909091,1721675444637,-500.0,0.0001452,2]
[332909092,1721675444647,-1513.61,0.0001452,2]
[332909093,1721675444657,-650.38,0.0001452,2]
[332909094,1721675444667,-500.0,0.0001452,2]
[332909095,1721675444676,-500.0,0.0001452,2]
[332909096,1721675444685,-500.0,0.0001452,2]
[332909097,1721675444695,-500.0,0.0001452,2]
[332909098,1721675444706,-500.0,0.0001452,2]
[332909099,1721675444716,-202.04,0.0001452,2]
[332909100,1721675444725,-500.0,0.0001452,2]
[332909101,1721675444736,-500.0,0.0001452,2]
[332909102,1721675444746,-500.0,0.0001452,2]
[332909103,1721675444755,-500.0,0.0001452,2]
[332909104,1721675444764,-500.0,0.0001452,2]
[332909105,1721675444773,-500.0,0.0001452,2]
[332909106,1721675444782,-386.51,0.0001452,2]
[332909107,1721675444791,-500.0,0.0001452,2]
[332909108,1721675444800,-1355.04748086,0.00014683,2]
[332909109,1721675444810,-1519.38235151,0.0001469,2]
[332909110,1721675444819,-154.72922386,0.0001469,2]
[332909111,1721675444829,-526.84583493,0.0001469,2]
[332909112,1721675444838,-397.25645957,0.0001469,2]
[332909113,1721675444848,-154.72922386,0.0001469,2]
[332909114,1721675444857,-620.00001046,0.00014747,2]
[332909115,1721675444866,-2669.62,0.00014783,2]
[332909116,1721675444876,-151.0,0.00014784,2]
[332909117,1721675444885,-3082.32,0.00014792,2]
[332909118,1721675444894,-2669.62,0.00014793,2]
[332909119,1721675444903,-3082.32,0.00014793,2]
[332909120,1721675444913,-500.0,0.00014794,2]
[332909121,1721675444922,-500.0,0.00014794,2]
[332909122,1721675444932,-500.0,0.00014794,2]
[332909123,1721675444941,-500.0,0.00014794,2]
[332909124,1721675444952,-500.0,0.00014794,2]
[332909125,1721675444963,-294.07089095,0.00014794,2]
[332909126,1721675444972,-500.0,0.00014794,2]
[332909127,1721675444981,-500.0,0.00014794,2]
[332909128,1721675444993,-438.4,0.00014794,2]
[332909129,1721675445003,-378.02,0.00014794,2]
[332909130,1721675445012,-500.0,0.00014794,2]
[332909131,1721675445022,-500.0,0.00014794,2]
[332909132,1721675445031,-500.0,0.00014794,2]
[332909133,1721675445041,-500.0,0.00014794,2]
[332909134,1721675445050,-500.0,0.00014794,2]
[332909135,1721675445059,-500.0,0.00014794,2]
[332909136,1721675445068,-685.58,0.00014794,2]
[332909137,1721675445077,-500.0,0.00014794,2]
[332909138,1721675445086,-500.0,0.00014794,2]
[332909139,1721675445096,-500.0,0.00014794,2]
[332909140,1721675445105,-500.0,0.00014794,2]
[332909141,1721675445114,-425.22,0.00014794,2]
[332909142,1721675445123,-500.0,0.00014794,2]
[332909143,1721675445133,-500.0,0.00014794,2]
[332909144,1721675445144,-500.0,0.00014794,2]
[332909145,1721675445154,-500.0,0.00014794,2]
[332909146,1721675445163,-500.0,0.00014794,2]
[332909147,1721675445172,-420.36,0.00014794,2]
[332909148,1721675445182,-500.0,0.00014794,2]
[332909149,1721675445193,-500.0,0.00014794,2]
[332909150,1721675445203,-500.0,0.00014794,2]
[332909151,1721675445213,-254.55735262,0.00014794,2]
[332909152,1721675445222,-500.0,0.00014794,2]
[332909153,1721675445232,-500.0,0.00014794,2]
[332909154,1721675445243,-369.16,0.00014794,2]
[332909155,1721675445252,-500.0,0.00014794,2]
[332909156,1721675445261,-647.46,0.00014794,2]
[332909157,1721675445271,-500.0,0.00014794,2]
[332909158,1721675445281,-500.0,0.00014794,2]
[332909159,1721675445290,-500.0,0.00014794,2]
[332909160,1721675445300,-500.0,0.00014794,2]
[332909161,1721675445310,-500.0,0.00014794,2]
[332909162,1721675445319,-500.0,0.00014794,2]
[332909163,1721675445329,-500.0,0.00014794,2]
[332909164,1721675445339,-156.01,0.00014794,2]
[332909165,1721675445349,-500.0,0.00014794,2]
[332909166,1721675445359,-500.0,0.00014794,2]
[332909167,1721675445369,-500.0,0.00014794,2]
[332909168,1721675445379,-500.0,0.00014794,2]
[332909169,1721675445388,-560.67,0.00014794,2]
[332909170,1721675445397,-500.0,0.00014794,2]
[332909171,1721675445407,-472.47,0.00014794,2]
[332909172,1721675445416,-577.42,0.00014794,2]
[332909173,1721675445425,-500.0,0.00014794,2]
[332909174,1721675445435,-500.0,0.00014794,2]
[332909175,1721675445444,-500.0,0.00014794,2]
[332909176,1721675445453,-500.0,0.00014794,2]
[332909177,1721675445462,-500.0,0.00014794,2]
[332909178,1721675445471,-500.0,0.00014794,2]
[332909179,1721675445480,-500.0,0.00014794,2]
[332909180,1721675445491,-406.18,0.00014794,2]
[332909181,1721675445502,-500.0,0.00014794,2]
[332909182,1721675445512,-500.0,0.00014794,2]
[332909183,1721675445523,-623.05,0.00014794,2]
[332909184,1721675445534,-500.0,0.00014794,2]
[332909185,1721675445543,-344.21,0.00014794,2]
[332909186,1721675445552,-176.12,0.00014794,2]
[332909187,1721675445561,-500.0,0.00014794,2]
[332909188,1721675445570,-500.0,0.00014794,2]
[332909189,1721675445580,-500.0,0.00014794,2]
[332909190,1721675445589,-500.0,0.00014794,2]
[332909191,1721675445598,-159.22,0.00014794,2]
[332909192,1721675445607,-500.0,0.00014794,2]
[332909193,1721675445617,-500.0,0.00014794,2]
[332909194,1721675445627,-500.0,0.00014794,2]
[332909195,1721675445756,-500.0,0.00014794,2]
[332909196,1721675445766,-1953.9,0.00014794,2]
[332909197,1721675445775,-173.44,0.00014794,2]
[332909198,1721675445785,-500.0,0.00014794,2]
[332909199,1721675445794,-500.0,0.00014794,2]
[332909201,1721675445803,-332.23,0.00014794,2]
[332909202,1721675445813,-500.0,0.00014794,2]
[332909203,1721675445822,-500.0,0.00014794,2]
[332909204,1721675445831,-500.0,0.00014794,2]
[332909205,1721675445841,-500.0,0.00014794,2]
[332909206,1721675445850,-245.56,0.00014794,2]
[332909207,1721675445859,-1886.51,0.00014794,2]
[332909208,1721675445869,-305.92,0.00014794,2]
[332909209,1721675445878,-500.0,0.00014794,2]
[332909210,1721675445887,-178.19,0.00014794,2]
[332909211,1721675445896,-500.0,0.00014794,2]
[332909212,1721675445906,-500.0,0.00014794,2]
[332909213,1721675445917,-500.0,0.00014794,2]
[332909214,1721675445926,-186.15,0.00014794,2]
[332909215,1721675445935,-500.0,0.00014794,2]
[332909216,1721675445944,-500.0,0.00014794,2]
[332909217,1721675445954,-650.38,0.00014794,2]
[332909218,1721675445963,-500.0,0.00014794,2]
[332909219,1721675445972,-500.0,0.00014794,2]
[332909220,1721675445981,-500.0,0.00014794,2]
[332909221,1721675445990,-500.0,0.00014794,2]
[332909222,1721675445999,-500.0,0.00014794,2]
[332909223,1721675446008,-491.24,0.00014794,2]
[332909224,1721675446018,-500.0,0.00014794,2]
[332909225,1721675446027,-500.0,0.00014794,2]
[332909226,1721675446036,-416.79,0.00014794,2]
[332909227,1721675446046,-151.0,0.00014794,2]
[332909228,1721675446055,-151.0,0.00014794,2]
[332909229,1721675446064,-151.0,0.00014794,2]
[332909230,1721675446073,-251.798858,0.00014794,2]
[332909231,1721675446082,-151.0,0.00014794,2]
[332909232,1721675446091,-151.0,0.00014794,2]
[332909233,1721675446101,-251.798858,0.00014794,2]
[332909234,1721675446110,-151.0,0.00014794,2]
[332909235,1721675446119,-151.0,0.00014794,2]
[332909236,1721675446129,-3082.32,0.00014957,2]
[332909237,1721675446142,-224.50165,0.00014957,2]
[332909238,1721675446151,-224.50165,0.00014957,2]
[332909239,1721675446161,-151.0,0.00014957,2]
[332909240,1721675446170,-233.885454,0.00014957,2]
[332909241,1721675446179,-233.885454,0.00014957,2]
[332909242,1721675446188,-3082.32,0.00014967,2]
[332909243,1721675446198,-3082.32,0.00014967,2]
[332909244,1721675446207,-261.367456,0.00014968,2]
[332909245,1721675446218,-261.367456,0.00014968,2]
[332909246,1721675446227,-151.0,0.00014968,2]
[332909247,1721675446237,-151.0,0.00014968,2]
[332909248,1721675446248,-151.0,0.00014968,2]
[332909249,1721675446257,-151.0,0.00014968,2]
[332909250,1721675446266,-3082.32,0.00014989,2]
[332909251,1721675446275,-2669.62,0.00014999,2]
[332909252,1721675446285,-2545.89876937,0.00015,2]
[332909253,1721675446293,-928.553004,0.00015,2]
[332909254,1721675446303,-2844.54225606,0.00015,2]
[332909255,1721675446312,-1044.21000206,0.00015,2]
[332909256,1721675446321,-2426.72780151,0.00015,2]
[332909257,1721675446331,-951.10916369,0.00015,2]
[332909258,1721675446340,-1107.79559828,0.00015,2]